[Event "Polish Youth Ekstraliga 2022"]
[Site "Lublin"]
[Date "2022.06.29"]
[Round "5.28"]
[White "Krol, Jan"]
[Black "Kania, Franciszek"]
[Result "0-1"]
[ECO "B36"]
[WhiteElo "1668"]
[BlackElo "1523"]
[Annotator "NA RC"]
[PlyCount "138"]
[EventDate "2022.06.24"]
[EventType "team-tourn"]
[EventCountry "POL"]
[SourceTitle "playchess.com"]
[Source "ChessBase"]
[SourceQuality "1"]
[TimeControl "40/5400+30:1800+30"]

1. e4 {[%emt 0:00:03]} c5 {[%emt 0:00:15]} 2. Nf3 {[%emt 0:00:04]} Nc6 {[%emt 0:00:08]} 3. d4 {[%emt 0:00:12]} cxd4 {[%emt 0:00:41]} 4. Nxd4 {[%emt 0:00:07]} g6 {[%emt 0:00:11]} 5. c4 {[%emt 0:02:53]} Nf6 {[%emt 0:00:37]} 6. Nc3 {[%emt 0:00:31]} d6 {[%emt 0:00:17]} 7. Be2 {[%emt 0:00:48]} Nxd4 {[%emt 0:00:55]} 8. Qxd4 {[%emt 0:00:11]} Bg7 {[%emt 0:00:07]} 9. Be3 {[%emt 0:00:26]} O-O {[%emt 0:00:14]} 10. Qd2 {[%emt 0:01:21]} a5 {[%emt 0:00:23]} 11. f3 {[%emt 0:00:52]} a4 12. Rb1 {[%emt 0:01:23]} Qa5 {[%emt 0:02:39]} 13. O-O {[%emt 0:03:38]} Be6 {[%emt 0:06:54]} 14. b4 {[%emt 0:20:32]} axb3 {[%emt 0:00:55]} 15. Rxb3 {[%emt 0:00:32]} Nd7 {[%emt 0:10:39]} 16. Rc1 {[%emt 0:15:51]} Nc5 {[%emt 0:08:19]} 17. Rb5 {[%emt 0:12:42]} Qa3 {[%emt 0:03:41]} 18. Rc2 {[%emt 0:04:38]} f5 {[%emt 0:11:36]} 19. Nd5 {[%emt 0:09:07]} Bxd5 {[%emt 0:09:00]} 20. exd5 {[%emt 0:02:06]} Rfc8 {[%emt 0:04:22]} 21. Bf1 {[%emt 0:10:13]} Rc7 {[%emt 0:04:09]} 22. Qe2 {[%emt 0:04:08]} Kh8 {[%emt 0:04:34]} 23. Qd2 {[%emt 0:03:21]} Qa4 {[%emt 0:03:47]} 24. h4 {[%emt 0:02:43]} Rac8 {[%emt 0:02:55]} 25. Bd4 {[%emt 0:01:00]} Bxd4+ {[%emt 0:01:06]} 26. Qxd4+ {[%emt 0:00:01]} Kg8 {[%emt 0:00:10]} 27. Rcb2 {[%emt 0:00:18]} Rf8 {[%emt 0:08:25]} 28. Qf4 {[%emt 0:03:16]} Qd1 {[%emt 0:02:10]} 29. Rb1 {[%emt 0:01:27]} Qc2 {[%emt 0:01:53]} 30. R1b2 {[%emt 0:00:27]} Qc3 {[%emt 0:00:34]} 31. h5 {[%emt 0:00:16]} Qf6 {[%emt 0:02:05]} 32. hxg6 {[%emt 0:00:46]} hxg6 {[%emt 0:00:10]} 33. Rd2 {[%emt 0:00:24]} Kg7 {[%emt 0:01:18]} 34. Qd4 {[%emt 0:00:22]} Qxd4+ {[%emt 0:00:23]} 35. Rxd4 {[%emt 0:00:01]} Ra8 {[%emt 0:00:22]} 36. Rd2 {[%emt 0:00:38]} Ra3 {[%emt 0:00:14]} 37. Kf2 {[%emt 0:00:55]} Kf6 {[%emt 0:01:39]} 38. Be2 {[%emt 0:00:23]} f4 {[%emt 0:00:38]} 39. Rb1 {[%emt 0:00:29]} Rc8 {[%emt 0:00:21]} 40. Bd1 {[%emt 0:00:00]} Re3 {[%emt 0:00:00]} 41. Bb3 {[%emt 0:02:44]} Rh8 {[%emt 0:10:51]} 42. Bc2 {[%emt 0:06:49]} Rc3 {[%emt 0:01:46]} 43. Bb3 {[%emt 0:00:19]} Re3 {[%emt 0:03:50]} 44. Bc2 {[%emt 0:00:06]} Ra8 {[%emt 0:00:18]} 45. Bb3 {[%emt 0:01:31]} Ra3 {[%emt 0:02:54]} 46. Kg1 {[%emt 0:08:50]} Ke5 {[%emt 0:08:35]} 47. Bd1 {[%emt 0:01:00]} Rac3 {[%emt 0:01:06]} 48. Be2 {[%emt 0:00:25]} g5 {[%emt 0:01:53]} 49. Bf1 {[%emt 0:01:14]} Ra3 {[%emt 0:00:57]} 50. Rbb2 {[%emt 0:01:22]} Re1 {[%emt 0:02:32]} 51. Re2+ {[%emt 0:03:12]} Re3 {[%emt 0:02:47]} 52. Rxe1 {[%emt 0:00:40]} Rxe1 {[%emt 0:00:09]} 53. Kf2 {[%emt 0:00:02]} Re3 {[%emt 0:00:12]} 54. a4 {[%emt 0:02:51]} Kd4 {[%emt 0:00:53]} 55. Ra2 {[%emt 0:00:35]} Kc3 {[%emt 0:00:46]} 56. a5 {[%emt 0:00:42]} Kb3 {[%emt 0:00:41]} 57. Ra1 {[%emt 0:00:54]} Kb2 {[%emt 0:00:46]} 58. Rd1 {[%emt 0:00:26]} Nb3 {[%emt 0:02:28]} 59. Bd3 {[%emt 0:02:49]} Kc3 {[%emt 0:00:27]} 60. Be4 {[%emt 0:00:18]} Kxc4 {[%emt 0:00:25]} 61. g4 {[%emt 0:00:38]} Nc5 {[%emt 0:01:51]} 62. Rc1+ {[%emt 0:00:35]} Kb5 {[%emt 0:00:34]} 63. Bf5 {[%emt 0:00:58]} Kxa5 {[%emt 0:00:40]} 64. Rh1 {[%emt 0:00:16]} Nd3+ {[%emt 0:00:42]} 65. Bxd3 {[%emt 0:00:21]} Rxd3 {[%emt 0:00:12]} 66. Re1 {[%emt 0:00:02]} Rxd5 {[%emt 0:00:24]} 67. Rxe7 b5 {[%emt 0:00:08]} 68. Rf7 {[%emt 0:00:17]} b4 {[%emt 0:01:01]} 69. Rf5 {[%emt 0:00:11]} Rc5 {[%emt 0:00:17]} 0-1

[Event "Polish Youth Ekstraliga 2022"]
[Site "Lublin"]
[Date "2022.06.29"]
[Round "5.29"]
[White "Dylag, Emilia"]
[Black "Adamczyk, Zuzanna"]
[Result "1/2-1/2"]
[ECO "D11"]
[WhiteElo "2022"]
[BlackElo "1909"]
[Annotator "TA"]
[PlyCount "119"]
[EventDate "2022.06.24"]
[EventType "team-tourn"]
[EventCountry "POL"]
[SourceTitle "playchess.com"]
[Source "ChessBase"]
[SourceQuality "1"]
[TimeControl "40/5400+30:1800+30"]

{[%evp 9,119,-1,6,1,9,0,0,8,22,0,-18,-17,7,0,0,0,35,47,39,12,0,20,48,0,0,0,0,0,9,0,48,53,59,43,75,0,0,0,0,0,219,200,200,175,172,127,134,75,76,74,127,129,125,124,119,122,123,95,98,104,167,167,187,185,186,185,187,179,174,170,153,145,176,172,177,142,83,75,75,8,8,0,2,0,0,0,0,0,0,0,0,0,0,0,0,0,0,0,0,0,0,-8,-7,-8,-8,-8,-8,-8,0,-8,0,-15]} 1. d4 {[%emt 0:00:04]} d5 {[%emt 0:00:19]} 2. c4 {[%emt 0:00:09]} c6 {[%emt 0:00:05]} 3. Nf3 {[%emt 0:00:11]} Nf6 {[%emt 0:00:08]} 4. Qc2 {[%emt 0:00:13]} dxc4 {[%emt 0:00:14]} 5. Qxc4 {[%emt 0:00:12]} Bg4 {[%emt 0:00:15]} 6. Nc3 {[%emt 0:03:20] D23: Queen's Gambit Accepted: 3 Nf3 Nf6 sidelines.} Nbd7 {[%emt 0:04:29][%cal Bb8d7,Bd7e5,Be5g6,Bg6h4][%mdl 32]} 7. e4 {[%emt 0:09:53] 7.Bf4 is the modern continuation.} Bxf3 {[%emt 0:01:42]} 8. gxf3 {[%emt 0:00:05]} e5 {[%emt 0:02:21]} 9. dxe5 {[%emt 0:02:41]} Nxe5 {[%emt 0:00:46]} 10. Qe2 {[%emt 0:00:07]} Bc5 {[%emt 0:10:20]} 11. Be3 {[%emt 0:09:14]} (11. Bd2 {is interesting.} Nh5 12. f4 Qxd2+ 13. Kxd2 Nxf4 14. Qd1) 11... Bxe3 {[%emt 0:21:19]} 12. fxe3 {[%emt 0:01:36] [#]} O-O $146 {[%emt 0:22:15]} ({Predecessor:} 12... g5 13. Rd1 {½-½ (13) Khenkin,I (2602)-Avrukh,B (2628) Maalot Tarshiha 2008}) 13. f4 {[%emt 0:03:37]} Ng6 {[%emt 0:02:53]} 14. Bg2 {[%emt 0:04:54]} Nh4 {[%emt 0:13:22]} 15. Bh3 {[%emt 0:08:01]} b5 {[%emt 0:06:19][%cal Bb7b5,Bb5b4][%mdl 32]} 16. Rd1 {[%emt 0:06:41]} Qa5 {[%emt 0:04:35]} 17. O-O {[%emt 0:01:38]} b4 {[%emt 0:00:35]} 18. e5 {[%emt 0:01:00]} bxc3 {[%emt 0:03:17]} 19. exf6 {[%emt 0:00:14] And now Qg4 would win.} g6 {[%emt 0:02:48]} (19... cxb2 $1 $11 20. Qxb2 Qh5) 20. Qf2 $14 {[%emt 0:05:08]} Qh5 {[%emt 0:00:45]} 21. bxc3 {[%emt 0:02:19] Black must now prevent Bd7.} Rad8 {[%emt 0:00:39]} 22. Rd7 {[%emt 0:05:39]} (22. Rxd8 $1 $16 Rxd8 23. e4) 22... Nf5 $11 {[%emt 0:00:44]} 23. Rxd8 {[%emt 0:01:14]} Rxd8 {[%emt 0:00:13]} 24. Bg2 $40 {[%emt 0:01:45][%cal Bh3g2,Bg2c6,Bc6e4][%mdl 160] Black needs to defend precisely.} Qh4 $2 {[%emt 0:01:10]} (24... Nh4 $11 {and Black has nothing to worry.}) 25. Qxh4 $18 {[%emt 0:02:26]} ({Weaker is} 25. Bxc6 Qxf6 26. Be4 Qxc3 27. Bxf5 gxf5 $11) 25... Nxh4 {[%emt 0:00:04]} 26. Bxc6 {[%emt 0:01:39][%mdl 4096] Endgame KRB-KRN} Rd6 {[%emt 0:00:35]} 27. Be4 {[%emt 0:03:00] c4 is the strong threat.} Rxf6 {[%emt 0:00:24]} 28. Rd1 {[%emt 0:00:43]} (28. Kf2 $142) 28... Re6 $16 {[%emt 0:00:45]} 29. Rd4 {[%emt 0:00:27]} Kg7 {[%emt 0:00:40]} (29... Nf5 $142 30. Bxf5 gxf5) 30. Kf2 {[%emt 0:00:27]} Nf5 {[%emt 0:00:46]} 31. Bxf5 {[%emt 0:00:28]} gxf5 {[%emt 0:00:03] KR-KR} 32. c4 {[%emt 0:05:10][%cal Bc3c4,Bc4c5,Bc5c6][%mdl 32]} Rh6 {[%emt 0:00:41]} 33. Kg2 {[%emt 0:04:04]} Ra6 {[%emt 0:00:24]} 34. Rd2 {[%emt 0:00:34]} Ra3 {[%emt 0:00:26]} (34... Kf6 $16) 35. Rc2 $1 $18 {[%emt 0:00:12]} Rxe3 {[%emt 0:00:17]} 36. c5 {[%emt 0:00:05]} Re7 {[%emt 0:00:44]} 37. c6 {[%emt 0:01:05] Threatens to win with c7.} Rc7 {[%emt 0:00:11]} 38. Rc5 {[%emt 0:01:23]} Kf6 {[%emt 0:00:09]} 39. Kg3 {[%emt 0:01:15]} Ke6 {[%emt 0:00:25] [#]} 40. Kh4 $1 {[%emt 0:00:00] White is more active.} Kd6 {[%emt 0:00:00]} 41. Rxf5 {[%emt 0:04:15]} Kxc6 {[%emt 0:02:10] [#]} 42. Kg5 $1 {[%emt 0:00:20]} Kd6 {[%emt 0:11:32]} 43. h4 {[%emt 0:04:08] aiming for Kf6.} Ke7 {[%emt 0:05:04]} 44. a4 {[%emt 0:05:01]} (44. Kh6 $16) 44... Rc6 $1 $11 {[%emt 0:04:32] The position is equal.} 45. Rb5 {[%emt 0:01:30]} Kf8 {[%emt 0:01:23]} 46. f5 {[%emt 0:03:13]} Kg7 {[%emt 0:00:32]} 47. a5 {[%emt 0:04:33]} h6+ {[%emt 0:03:44]} 48. Kh5 {[%emt 0:00:16]} Rd6 {[%emt 0:00:27]} 49. Rc5 {[%emt 0:01:07]} Ra6 {[%emt 0:02:20]} 50. Kg4 {[%emt 0:00:40]} Rd6 {[%emt 0:00:51]} 51. Rb5 {[%emt 0:05:23]} Rd4+ {[%emt 0:00:27]} 52. Kh5 {[%emt 0:00:09]} Rd6 {[%emt 0:00:06]} 53. Rc5 {[%emt 0:07:37]} Ra6 {[%emt 0:00:18]} 54. Kg4 {[%emt 0:01:44]} Rd6 {[%emt 0:00:13]} 55. Kf3 {[%emt 0:03:00]} Rd4 {[%emt 0:01:31]} 56. Rc7 {[%emt 0:02:06]} Rxh4 {[%emt 0:00:22]} 57. Rxa7 {[%emt 0:00:03]} Ra4 {[%emt 0:00:08]} 58. Ra6 {[%emt 0:00:49]} Rc4 {[%emt 0:00:48]} 59. Kg3 {[%emt 0:01:48]} Ra4 {[%emt 0:00:27]} 60. Kh3 {[%emt 0:03:38] Blacks defense is rewarded with a draw.  Weighted Error Value: White=0.10 (very precise) /Black=0.15 (very precise)} 1/2-1/2

[Event "Polish Youth Ekstraliga 2022"]
[Site "Lublin"]
[Date "2022.06.29"]
[Round "5.30"]
[White "Gaszka, Zuzanna"]
[Black "Bandyk, Joanna"]
[Result "1-0"]
[ECO "B93"]
[WhiteElo "1621"]
[BlackElo "1360"]
[Annotator "NA RC"]
[PlyCount "45"]
[EventDate "2022.06.24"]
[EventType "team-tourn"]
[EventCountry "POL"]
[SourceTitle "playchess.com"]
[Source "ChessBase"]
[SourceQuality "1"]
[TimeControl "40/5400+30:1800+30"]

1. e4 {[%emt 0:00:01]} c5 {[%emt 0:00:05]} 2. Nf3 {[%emt 0:00:08]} d6 {[%emt 0:00:10]} 3. d4 {[%emt 0:00:07]} cxd4 {[%emt 0:00:07]} 4. Nxd4 {[%emt 0:00:06]} Nf6 {[%emt 0:00:12]} 5. Nc3 {[%emt 0:00:07]} a6 {[%emt 0:00:06]} 6. f4 {[%emt 0:00:05]} e5 {[%emt 0:01:04]} 7. Nf3 {[%emt 0:00:08]} Qc7 {[%emt 0:00:16]} 8. Bd3 {[%emt 0:00:24]} Nbd7 {[%emt 0:01:26]} 9. O-O {[%emt 0:00:57]} Be7 {[%emt 0:00:34]} 10. Kh1 {[%emt 0:01:32]} O-O {[%emt 0:02:09]} 11. fxe5 {[%emt 0:01:37]} dxe5 {[%emt 0:02:39]} 12. Nh4 {[%emt 0:02:31]} Nc5 {[%emt 0:08:44]} 13. Bg5 {[%emt 0:05:14]} Nfxe4 {[%emt 0:16:40]} 14. Nd5 {[%emt 0:03:16]} Nxd3 {[%emt 0:04:05]} 15. cxd3 {[%emt 0:01:44]} Qc5 {[%emt 0:02:12]} 16. Nxe7+ {[%emt 0:00:58]} Kh8 {[%emt 0:00:49]} 17. dxe4 {[%emt 0:00:12]} f6 {[%emt 0:01:02]} 18. Qh5 {[%emt 0:00:30]} g6 {[%emt 0:01:46]} 19. Nexg6+ {[%emt 0:01:34]} Kg8 {[%emt 0:00:30]} 20. Nxf8 {[%emt 0:00:09]} Kxf8 {[%emt 0:00:32]} 21. Rxf6+ {[%emt 0:00:07]} Ke7 {[%emt 0:00:11]} 22. Qf7+ {[%emt 0:00:05]} Kd8 {[%emt 0:00:03]} 23. Rd6# {[%emt 0:00:06]} 1-0

[Event "Polish Youth Ekstraliga 2022"]
[Site "Lublin"]
[Date "2022.06.30"]
[Round "6.1"]
[White "Czopor, Maciej"]
[Black "Niedbala, Bartlomiej"]
[Result "1/2-1/2"]
[ECO "E04"]
[WhiteElo "2425"]
[BlackElo "2384"]
[Annotator "TA"]
[PlyCount "74"]
[EventDate "2022.06.24"]
[EventType "team-tourn"]
[EventCountry "POL"]
[SourceTitle "playchess.com"]
[Source "ChessBase"]
[SourceQuality "1"]
[TimeControl "40/5400+30:1800+30"]

{[%evp 11,74,-4,0,0,0,-4,0,0,-8,-1,0,0,0,0,0,0,0,-24,-20,-25,-27,-27,-21,-28,-24,-33,-14,-11,-4,-13,-4,-6,0,0,0,0,0,0,0,0,0,0,0,-8,0,-29,-5,-12,0,-8,-8,-8,-8,-8,-8,-8,-8,-8,-8,-45,-8,-45,-8,-12,-8]} 1. d4 {[%emt 0:00:06]} Nf6 {[%emt 0:00:29]} 2. c4 {[%emt 0:00:06]} e6 {[%emt 0:00:04]} 3. Nf3 {[%emt 0:00:18]} d5 {[%emt 0:00:07]} 4. g3 {[%emt 0:00:23]} dxc4 {[%emt 0:00:06]} 5. Bg2 {[%emt 0:00:08]} c6 {[%emt 0:00:04]} 6. O-O {[%emt 0:02:47]} b5 {[%emt 0:01:38]} 7. Ne5 {[%emt 0:02:40] E04: Open Catalan: 5 Nf3.} Bb7 {[%emt 0:00:26]} 8. a4 {[%emt 0:00:03] [#] aiming for axb5.} a6 {[%emt 0:00:07]} 9. b3 {[%emt 0:00:05]} cxb3 {[%emt 0:01:05]} 10. Qxb3 {[%emt 0:00:05] [#] is now debated instead of 10.Bb2.} b4 $146 {[%emt 0:09:51]} ({Predecessor:} 10... Be7 11. Rd1 O-O 12. Ba3 Nfd7 13. Nd3 Bxa3 14. Qxa3 Nb6 15. Nc5 Bc8 16. Nc3 Qe7 {1-0 (77) Matlakov,M (2674)-Andreikin,D (2724) Chess.com INT 2022}) 11. Bb2 {[%emt 0:27:07]} a5 {[%emt 0:00:34]} 12. Nd2 {[%emt 0:00:36]} Be7 {[%emt 0:00:38]} 13. Rac1 {[%emt 0:05:25]} O-O {[%emt 0:01:17]} 14. Nxc6 {[%emt 0:04:44]} Nxc6 {[%emt 0:07:50]} 15. Bxc6 {[%emt 0:00:16]} Qb6 {[%emt 0:12:08]} 16. Bxb7 {[%emt 0:10:14]} Qxb7 {[%emt 0:00:36]} 17. Rc2 {[%emt 0:03:10]} Rfc8 {[%emt 0:07:10]} 18. Rfc1 {[%emt 0:00:43]} Nd5 {[%emt 0:04:48]} 19. Nc4 $1 {[%emt 0:02:02][%cal Oc4a5]} Qa6 {[%emt 0:02:33]} 20. e4 {[%emt 0:04:25]} Nc3 {[%emt 0:14:18]} 21. Bxc3 {[%emt 0:00:05] [#] Threatens to win with Bd2.} Qxc4 {[%emt 0:00:02]} 22. Qxc4 {[%emt 0:04:49]} Rxc4 {[%emt 0:00:05]} 23. Bb2 {[%emt 0:00:09]} Rxc2 {[%emt 0:00:09]} 24. Rxc2 $11 {[%emt 0:00:01][%mdl 4096] Endgame KRB-KRB} Kf8 {[%emt 0:07:15]} 25. Kf1 {[%emt 0:00:55]} Ke8 {[%emt 0:00:44]} 26. Ke2 {[%emt 0:05:25]} Kd7 {[%emt 0:00:20]} 27. Kd3 {[%emt 0:00:13]} g6 {[%emt 0:02:05]} 28. f3 {[%emt 0:03:58]} Rb8 {[%emt 0:02:27]} 29. Rc4 {[%emt 0:03:43]} Bd6 {[%emt 0:03:35]} 30. e5 {[%emt 0:10:29]} Be7 {[%emt 0:02:38]} 31. Ke4 {[%emt 0:00:33]} f5+ {[%emt 0:03:09]} 32. exf6 {[%emt 0:00:11]} Bxf6 {[%emt 0:00:03]} 33. Rc5 {[%emt 0:00:44]} Rc8 {[%emt 0:02:24]} 34. Rxc8 {[%emt 0:00:43]} ({But not} 34. Rxa5 Rc2 35. Ra7+ Ke8 $19) 34... Kxc8 {[%emt 0:00:07]} 35. Kd3 {[%emt 0:04:24]} Kd7 {[%emt 0:00:31]} 36. Kc4 {[%emt 0:01:31]} Kc6 {[%emt 0:00:12]} 37. Bc1 {[%emt 0:02:41]} Be7 {[%emt 0:03:11] Weighted Error Value: White=0.05 (flawless) /Black=0.06 (flawless)} 1/2-1/2

[Event "Polish Youth Ekstraliga 2022"]
[Site "Lublin"]
[Date "2022.06.30"]
[Round "6.2"]
[White "Redzisz, Michal"]
[Black "Luberanski, Jakub"]
[Result "0-1"]
[ECO "B12"]
[WhiteElo "2236"]
[BlackElo "2241"]
[Annotator "TA"]
[PlyCount "75"]
[EventDate "2022.06.24"]
[EventType "team-tourn"]
[EventCountry "POL"]
[SourceTitle "playchess.com"]
[Source "ChessBase"]
[SourceQuality "1"]
[TimeControl "40/5400+30:1800+30"]

{[%evp 9,75,20,6,-30,-32,-46,-47,-61,-46,-61,-55,-110,-28,-111,-109,-318,-311,-308,-308,-297,-293,-374,-335,-565,-422,-571,-580,-575,-560,-554,-75,-78,-89,-79,-68,-73,-51,-68,0,-183,-184,-172,-190,-175,-35,-337,-346,-324,-321,-375,-375,-405,-403,-403,-422,-494,-454,-647,-650,-773,-760,-746,-735,-686,-458,-29987,-29988,-29991]} 1. e4 {[%emt 0:00:45]} c6 {[%emt 0:00:05]} 2. d4 {[%emt 0:00:04]} d5 {[%emt 0:00:03]} 3. e5 {[%emt 0:00:03]} Bf5 {[%emt 0:00:04]} 4. h4 {[%emt 0:00:03]} Qb6 {[%emt 0:00:15]} 5. g4 {[%emt 0:19:04]} Bd7 {[%emt 0:00:11][%cal Oh7h5]} (5... Be4 $2 6. f3 $18) 6. h5 {[%emt 0:04:28] B12: Caro-Kann: Advance Variation.} e6 {[%emt 0:04:35]} 7. f4 {[%emt 0:00:02]} c5 {[%emt 0:00:58]} 8. c3 {[%emt 0:00:15] Black is slightly better.} Nc6 {[%emt 0:01:40][%cal Rc5d4]} 9. Nf3 {[%emt 0:00:33]} Rc8 {[%emt 0:03:47]} 10. Rh2 {[%emt 0:17:36] [#]} (10. Na3 $15) 10... Nh6 {[%emt 0:07:09]} (10... f6 $1 $17 {And now ...cxd4 would win.} 11. Rc2 cxd4 12. cxd4 fxe5 13. Nxe5 (13. fxe5 Nh6 $17) 13... Nxe5 14. Rxc8+ Bxc8 15. fxe5 Ne7) 11. Bh3 {[%emt 0:02:07]} (11. dxc5 $11 {remains equal.} Bxc5 12. Bh3) 11... cxd4 $17 {[%emt 0:05:37]} 12. cxd4 $2 {[%emt 0:06:44] [#]} (12. Kf1 $17) 12... Nxd4 $1 $19 {[%emt 0:01:38][%mdl 512]} 13. Nxd4 {[%emt 0:02:12] [#] Threatens to win with Nc3.} Rxc1 {[%emt 0:00:19][%mdl 512]} 14. Qxc1 {[%emt 0:00:03]} Qxd4 {[%emt 0:00:08]} 15. Ke2 {[%emt 0:08:04]} g5 {[%emt 0:15:25]} (15... Bb5+ 16. Kf3 Bc5 17. Na3 Qd3+ 18. Kg2 $17) 16. Qd2 {[%emt 0:14:53]} (16. Nc3 {was worth a try.} gxf4 17. Rf2 Qxe5+ 18. Kd1) 16... Bb5+ {[%emt 0:22:02]} 17. Kf3 {[%emt 0:00:42]} Qe4+ {[%emt 0:00:10]} 18. Kg3 {[%emt 0:00:12]} Rg8 {[%emt 0:05:13]} 19. Rf2 {[%emt 0:03:56] [#]} Bc5 $146 {[%emt 0:10:07]} (19... gxf4+ $19 {has better winning chances.} 20. Qxf4 Qh1) ({Predecessor:} 19... gxf4+ 20. Qxf4 Nf5+ 21. Kh2 Qxf4+ 22. Rxf4 Bg7 23. Rxf5 exf5 24. gxf5 Bxe5+ 25. Kh1 Bxb2 {0-1 (25) Jurkina,Y (1999)-Ovetchkin,R (2501) Samara 2012}) 20. Nc3 $17 {[%emt 0:00:32]} Bxf2+ {[%emt 0:00:48]} 21. Kxf2 {[%emt 0:10:24]} Qb4 {[%emt 0:00:42] The board is on fire. Black is more active.} 22. a3 {[%emt 0:02:21]} Qc5+ {[%emt 0:00:12]} 23. Kg3 $1 {[%emt 0:00:36]} Bc6 {[%emt 0:07:11]} (23... gxf4+ $15 24. Qxf4 Nf5+ 25. Kh2 Ne7 26. Nxb5 Qxb5) 24. Rc1 $2 {[%emt 0:03:58]} (24. fxg5 $11 {and White stays safe.} d4 25. gxh6 Qxe5+ 26. Kh4 (26. Qf4 Qxf4+ 27. Kxf4 dxc3 $15)) 24... gxf4+ $19 {[%emt 0:01:35]} 25. Qxf4 {[%emt 0:01:50]} Nf5+ {[%emt 0:00:11][%cal Bh6f5,Bf5e3,Be3c2][%mdl 32]} 26. Kh2 {[%emt 0:01:23]} Qe3 {[%emt 0:01:26]} ({Black should try} 26... Qd4 $19 27. Qxd4 Nxd4) 27. Rf1 {[%emt 0:00:26][%mdl 8192]} (27. Nxd5 $1 $15 Qxf4+ 28. Nxf4) 27... Qxf4+ {[%emt 0:00:21]} 28. Rxf4 {[%emt 0:00:01]} Ne3 {[%emt 0:00:28]} 29. b3 {[%emt 0:01:09]} Rg5 {[%emt 0:00:22]} 30. Ne2 {[%emt 0:00:33]} Rxe5 {[%emt 0:00:19]} 31. Nd4 {[%emt 0:00:02] [#]} Nc2 $1 {[%emt 0:01:42][%mdl 512]} 32. Nf3 {[%emt 0:00:55]} (32. Nxc2 Re2+) 32... Re4 {[%emt 0:02:30]} 33. Rf6 {[%emt 0:00:22]} (33. Rxe4 $142 dxe4 34. Ng1) 33... d4 {[%emt 0:00:19][%cal Bd5d4,Bd4d3,Bd3d2][%mdl 32]} 34. Ng5 {[%emt 0:00:39]} Re2+ {[%emt 0:00:10]} 35. Kg3 {[%emt 0:00:02]} d3 {[%emt 0:00:36] ( -> ...d2)} 36. Bf1 {[%emt 0:00:08]} Re3+ {[%emt 0:00:06]} 37. Kh4 (37. Kf2 $19) 37... d2 {[%emt 0:00:11]} 38. Rg6 {[%emt 0:00:10] Weighted Error Value: White=0.89/Black=0.46} 0-1

[Event "Polish Youth Ekstraliga 2022"]
[Site "Lublin"]
[Date "2022.06.30"]
[Round "6.3"]
[White "Jaworski, Tymon"]
[Black "Warchol, Kamil"]
[Result "0-1"]
[ECO "E21"]
[WhiteElo "1628"]
[BlackElo "2079"]
[Annotator "RC"]
[PlyCount "82"]
[EventDate "2022.06.24"]
[EventType "team-tourn"]
[EventCountry "POL"]
[SourceTitle "playchess.com"]
[Source "ChessBase"]
[SourceQuality "1"]
[TimeControl "40/5400+30:1800+30"]

1. d4 {[%emt 0:00:12]} Nf6 {[%emt 0:00:01]} 2. c4 {[%emt 0:00:51]} e6 {[%emt 0:00:05]} 3. Nc3 {[%emt 0:00:51]} Bb4 {[%emt 0:00:08]} 4. Nf3 {[%emt 0:04:32]} b6 {[%emt 0:03:58]} 5. g3 {[%emt 0:06:55]} Bb7 {[%emt 0:05:47]} 6. Bg2 {[%emt 0:01:09]} O-O {[%emt 0:13:44]} 7. O-O {[%emt 0:05:24]} Bxc3 {[%emt 0:17:35]} 8. bxc3 {[%emt 0:00:25]} Re8 {[%emt 0:01:22]} 9. Ba3 {[%emt 0:16:59]} Qc8 {[%emt 0:10:00]} 10. Nd2 {[%emt 0:09:14]} Bxg2 {[%emt 0:02:35]} 11. Kxg2 {[%emt 0:00:20]} e5 {[%emt 0:01:05]} 12. e3 {[%emt 0:06:34]} d6 {[%emt 0:07:11]} 13. Qc2 {[%emt 0:09:14]} Qa6 {[%emt 0:20:42]} 14. Bb2 {[%emt 0:02:11]} c6 {[%emt 0:03:51]} 15. e4 {[%emt 0:02:25]} Nbd7 {[%emt 0:00:11]} 16. Rae1 {[%emt 0:01:39]} Rac8 {[%emt 0:01:02]} 17. f4 {[%emt 0:02:37]} h6 {[%emt 0:01:49]} 18. Rf3 {[%emt 0:02:03]} Rc7 {[%emt 0:02:58]} 19. h3 {[%emt 0:02:50]} Rb7 {[%emt 0:00:25]} 20. fxe5 {[%emt 0:07:43]} dxe5 {[%emt 0:00:04]} 21. Rfe3 {[%emt 0:03:05]} Rbb8 {[%emt 0:00:59]} 22. Rf3 {[%emt 0:03:55]} Red8 {[%emt 0:01:57]} 23. Rd3 {[%emt 0:01:01]} Ne8 {[%emt 0:00:28]} 24. Ree3 {[%emt 0:03:50]} Nd6 {[%emt 0:00:55]} 25. Qb3 {[%emt 0:00:54]} b5 {[%emt 0:00:56]} 26. c5 {[%emt 0:00:55]} Nc4 {[%emt 0:00:13]} 27. Re2 {[%emt 0:01:05]} Nxb2 {[%emt 0:00:41]} 28. Qxb2 {[%emt 0:00:19]} Nxc5 {[%emt 0:00:04]} 29. Rde3 {[%emt 0:01:06]} Ne6 {[%emt 0:00:27]} 30. Nb3 {[%emt 0:01:26]} b4 {[%emt 0:00:38]} 31. dxe5 {[%emt 0:01:23]} Qb6 {[%emt 0:01:19]} 32. Qc2 {[%emt 0:00:48]} c5 {[%emt 0:00:23]} 33. Nd2 {[%emt 0:01:46]} Qa6 {[%emt 0:00:53]} 34. Nf3 {[%emt 0:00:24]} Qb5 {[%emt 0:01:18]} 35. c4 {[%emt 0:01:00]} Qc6 {[%emt 0:00:29]} 36. Rd2 {[%emt 0:00:22]} a5 {[%emt 0:00:52]} 37. Rd5 {[%emt 0:00:32]} Nc7 {[%emt 0:00:02]} 38. Qd3 {[%emt 0:00:50]} Nxd5 {[%emt 0:00:49]} 39. exd5 {[%emt 0:00:19]} Qd7 {[%emt 0:00:30]} 40. Qe4 Qxd5 41. Qd3 Qd7 0-1